Cogmind - Beta 15 @@@ ROGUE MODE // 2025.07.22 @ 19:31:04 Player: lvl5hm Result: Destroyed by Z-Imprinter with Zionite Laser-M Performance ------------- Evolutions (1) 500 Regions Visited (5) 1000 Robots Destroyed (14) 70 Value Destroyed (252) 252 Prototype IDs (4) 80 Alien Tech Used (0) 0 Bonus (300) 300 TOTAL SCORE: 2202 Bonus ------- Met Imprinter 300 Cogmind --------- Core Integrity 0/400 Matter 192/300 Energy 39/100 System Corruption 0% Temperature Cool (18) Movement Walking (110) Location -7/Deep Caves Parts ------- > --- POWER (1) -------- (None) > --- PROPULSION (3) --- Zionite Composite Leg I > --- UTILITY (3) ------ Surveybot 24 Chip Zionite Light Carapace > --- WEAPON (2) ------- Beamcaster Slug Cannon > --- INVENTORY (5) ---- Nuclear Core Heat Sink Heavy Riot Gun Peak State ------------ > --- POWER ------------ (None) > --- PROPULSION ------- Zionite Composite Leg I > --- UTILITY ---------- Surveybot 24 Chip Zionite Heavy Carapace > --- WEAPON ----------- Beamcaster Barrage Gun > --- INVENTORY -------- Nuclear Core Heat Sink Heavy Riot Gun Slug Cannon Precision Grenade Launcher [Rating: 35] Favorites ----------- Power Nuclear Core Engine Ion Engine Power Core Nuclear Core Propulsion Improved Hover Unit Treads Light Treads Leg Zionite Composite Leg I Hover Unit Improved Hover Unit Utility System Shield Device Advanced Weight Redist. System Processor Surveybot 24 Chip Hackware System Shield Protection Light Armor Plating Weapon Precision Grenade Launcher Energy Gun Beamcaster Ballistic Gun Barrage Gun Ballistic Cannon Slug Cannon Launcher Precision Grenade Launcher Build | -11 -10 -9 -9 -7 -7 ------- Run | Yrd Mat Mat Min Zio Dee Slots Evolved 2 | . . 2 . . . Power . | . . . . . . Propulsion 1 | . . 1 . . . Utility 1 | . . 1 . . . Weapon . | . . . . . . Parts Attached 25 | 4 4 6 1 4 6 Power 2 | . 1 1 . . . Engine 1 | . 1 . . . . Core 1 | . . 1 . . . Reactor . | . . . . . . Propulsion 7 | 2 2 1 . 1 1 Treads 2 | 2 . . . . . Leg 1 | . . . . . 1 Wheel . | . . . . . . Hover 4 | . 2 1 . 1 . Flight . | . . . . . . Utility 8 | . 1 2 1 1 3 Device 2 | . 1 . . 1 . Storage . | . . . . . . Processor 1 | . . . . . 1 Hackware 2 | . . 2 . . . Protection 3 | . . . 1 . 2 Artifact . | . . . . . . Weapon 8 | 2 . 2 . 2 2 Energy Gun 1 | . . . . . 1 Energy Cannon . | . . . . . . Ballistic Gun 5 | 2 . 2 . 1 . Ballistic Cannon 1 | . . . . . 1 Launcher 1 | . . . . 1 . Special Weapon . | . . . . . . Impact Weapon . | . . . . . . Slashing Weapon . | . . . . . . Piercing Weapon . | . . . . . . Special Melee Weapon . | . . . . . . Unidentified Prototypes 4 | . . . . 1 3 Parts Lost 5 | . . 1 . . 4 Power . | . . . . . . Propulsion 1 | . . 1 . . . Utility 2 | . . . . . 2 Weapon 2 | . . . . . 2 Highest Loss Streak 4 | . . 1 . . 4 To Critical Strikes . | . . . . . . Average Backups 4 | . 3 4 4 4 5 Power 1 | . . 1 2 1 1 Propulsion . | . 1 . . . . Utility . | . . . 1 1 1 Weapon 2 | . 1 1 1 2 3 Tool/Special . | . . . . . . Unused Backups 8 | . 2 1 . 2 3 Power 2 | . . . . 1 1 Propulsion . | . . . . . . Utility 1 | . . . . . 1 Weapon 5 | . 2 1 . 1 1 Tool/Special . | . . . . . . Average Slot Usage (%) 90 | . 71 90 77 94 91 Engine 1 | . 7 1 . . . Core 9 | . . 9 11 11 9 Treads 1 | . 12 . . . . Hover 25 | . 16 27 11 27 27 Device 10 | . 7 11 11 11 9 Hackware 10 | . . 18 13 11 5 Protection 7 | . . . 8 11 10 Ballistic Gun 15 | . 28 22 22 11 11 Launcher 6 | . . . . 10 6 Peak Build Rating 35 | 4 9 20 19 25 35 Average Rating 20 | 3 6 17 15 23 26 On Entrance 12 | . 4 9 19 17 25 Naked Turns . | . . . . . . Heaviest Build 19 | 2 7 13 16 19 19 Greatest Support 40 | 40 20 27 20 30 30 Greatest Overweight (x) 5 | . . . 1 . 5 Average Overweight (x) . | . . . . . . Largest Inventory Capacity 5 | 5 5 5 5 5 5 Average Capacity 5 | 5 5 5 5 5 5 Most Carried 5 | 2 5 5 5 5 5 Average Carried 4 | 1 3 4 4 4 4 Final Capacity 5 | 5 5 5 5 5 5 Final Carried 5 | 2 5 5 4 5 3 Class Distribution -------------------- 78% | Mutant 16% | Hacker-Mutant 4% | Derelict-Mutant Dominant Class ---------------- Mutant | -10/Materials Hacker-Mutant | -9/Materials Hacker-Mutant | -9/Mines Mutant | -7/Zion Mutant | -7/Deep Caves Resources | -11 -10 -9 -9 -7 -7 ----------- Run | Yrd Mat Mat Min Zio Dee Matter Collected 565 | 215 68 158 45 65 14 Remotely . | . . . . . . Salvage Created 413 | . 43 265 45 . 60 Parts 28 | . 4 13 5 . 6 Haulers Intercepted . | . . . . . . Recyclers Shooed . | . . . . . . Parts Field Recycled . | . . . . . . Retrieved Matter . | . . . . . . Parts Self-Destructed . | . . . . . . Prevented . | . . . . . . Kills | -11 -10 -9 -9 -7 -7 ------- Run | Yrd Mat Mat Min Zio Dee Combat Hostiles Destroyed 11 | . 3 3 4 . 1 Guns 11 | . 3 3 4 . 1 Classes Destroyed 6 | . 1 4 . . 1 Worker 2 | . . 2 . . . Recycler 1 | . . 1 . . . Swarmer 7 | . 3 . 4 . . Grunt 1 | . . 1 . . . Sentry 2 | . . 2 . . . Z-Light 1 | . . . . . 1 Best Kill Streak 5 | . 3 5 4 . 1 Combat Bots Only 4 | . 3 1 4 . 1 Max Kills in Single Turn 2 | . 1 1 2 . 1 Gunslinging 1 | . . . 1 . . Exploded . | . . . . . . Melee . | . . . . . . Uniques/NPCs Destroyed . | . . . . . . Combat | -11 -10 -9 -9 -7 -7 -------- Run | Yrd Mat Mat Min Zio Dee Hostile Shots Fired 94 | . 9 17 23 . 45 Missed 32 | . 5 8 3 . 16 Hits 62 | . 4 9 20 . 29 Projectile 62 | . 4 9 20 . 29 Damage Taken 1357 | . 31 119 165 . 1042 Core 416 | . 16 31 45 . 324 Absorbed by Shields . | . . . . . . Core Remaining (%) 96 | 100 93 . . . . Volleys Fired 41 | . 6 21 5 . 9 Largest 2 | . 2 2 2 . 2 Hottest 103 | . 40 46 46 . 103 Shots Fired 78 | . 12 42 10 . 14 Gun 76 | . 12 42 10 . 12 Cannon . | . . . . . . Launcher 2 | . . . . . 2 Special . | . . . . . . Kinetic 73 | . 12 42 10 . 9 Thermal 3 | . . . . . 3 Explosive 2 | . . . . . 2 Electromagnetic . | . . . . . . Robot Hit Streak 13 | . 3 13 5 . 5 Robot Miss Streak 4 | . 3 4 3 . 2 Penetration Max . | . . . . . . Secondary Targets 1 | . . . 1 . . Max Gunslinging Chain 1 | . . . 1 . . Shots Hit Robots 52 | . 5 29 9 . 9 Core Hits 23 | . 3 13 4 . 3 Critical Kills . | . . . . . . Critical Parts Destroyed . | . . . . . . Critical Strikes . | . . . . . . Melee Attacks . | . . . . . . Impact . | . . . . . . Slashing . | . . . . . . Piercing . | . . . . . . Sneak Attacks . | . . . . . . Combat Hostiles . | . . . . . . Follow-up Attacks . | . . . . . . Damage Inflicted 823 | . 44 269 149 . 361 Guns 593 | . 44 269 149 . 131 Cannons . | . . . . . . Explosions 230 | . . . . . 230 Melee . | . . . . . . Ramming . | . . . . . . Kinetic 549 | . 44 269 149 . 87 Thermal 44 | . . . . . 44 Explosive 230 | . . . . . 230 Electromagnetic . | . . . . . . Impact . | . . . . . . Slashing . | . . . . . . Piercing . | . . . . . . Highest Corruption 1 | . . 1 1 1 . Average Corruption 1 | . . 1 1 1 . Corruption Purged . | . . . . . . Corruption Blocked . | . . . . . . Effects 1 | . . 1 . . . Message Errors 1 | . . 1 . . . Overload Shots . | . . . . . . Overflow Damage 6 | . . . . . 6 Projectiles . | . . . . . . Explosions 6 | . . . . . 6 Melee . | . . . . . . Knockbacks . | . . . . . . Impact . | . . . . . . Kinetic . | . . . . . . Secondary . | . . . . . . Self-Inflicted Damage 96 | . . . . . 96 Shots 2 | . . . . . 2 Rammed . | . . . . . . Targets Rammed . | . . . . . . Kicked . | . . . . . . Crushed . | . . . . . . Highest Temperature 159 | . 8 15 . . 159 Average Temperature 25 | . 4 4 . . 54 Received Heat Transfer 297 | . . 36 . . 261 Siege Activations . | . . . . . . Martial Activations . | . . . . . . Shielding Activations . | . . . . . . Robots Disrupted . | . . . . . . Combat Hostiles . | . . . . . . Robots Corrupted . | . . . . . . Combat Hostiles . | . . . . . . Parts Fried . | . . . . . . Impact Corruptions . | . . . . . . Robots Melted . | . . . . . . Combat Hostiles . | . . . . . . Parts Melted . | . . . . . . Heat Transferred 18 | . . . . . 18 Parts Sabotaged . | . . . . . . Parts Stolen . | . . . . . . Parts Stripped . | . . . . . . Power Chain Reactions . | . . . . . . Alert | -11 -10 -9 -9 -7 -7 ------- Run | Yrd Mat Mat Min Zio Dee Maximum Alert Level . | . . . . . . Low Security (%) 100 | 100 100 100 100 . . Level 1 . | . . . . . . Level 2 . | . . . . . . Level 3 . | . . . . . . Level 4 . | . . . . . . Level 5 . | . . . . . . High Security . | . . . . . . Max Security . | . . . . . . Peak Influence 121 | . 90 90 121 . . Initial 33 | . . 33 31 . . Average 27 | . 21 24 86 . . Influence Increases 358 | . 106 162 90 . . Destroy 0b10 Robot/C 200 | . 60 60 80 . . Destroy 0b10 Robot/NC 15 | . . 15 . . . Destroy Leader 50 | . 10 30 10 . . Successful Hack 18 | . 6 12 . . . Lose Combat Pursuer 75 | . 30 45 . . . Influence Decreases 358 | . 26 162 59 111 . Entered New Map 207 | . . 47 49 111 . Time Decay 133 | . 26 97 10 . . Purge Threat 18 | . . 18 . . . Squads Dispatched 3 | . . 3 . . . Investigation . | . . . . . . Extermination . | . . . . . . Reinforcement 3 | . . 3 . . . Assault . | . . . . . . Garrison . | . . . . . . Intercept . | . . . . . . Searches Triggered . | . . . . . . Construction Impeded . | . . . . . . Haulers Reinforced . | . . . . . . Active Scanning Responses . | . . . . . . Cargo Convoy Interrupts . | . . . . . . Stealth | -11 -10 -9 -9 -7 -7 --------- Run | Yrd Mat Mat Min Zio Dee Distress Signals 2 | . . 2 . . . Communications Jammed . | . . . . . . Distress Signals . | . . . . . . Times Spotted 29 | . 5 15 4 . 5 Peak Tracking Total 5 | . 5 5 4 . 4 Tactical Retreats 3 | . 1 2 . . . Traps | -11 -10 -9 -9 -7 -7 ------- Run | Yrd Mat Mat Min Zio Dee Traps Triggered 2 | . 1 1 . . . Indirectly . | . . . . . . Trap Hack Attempts . | . . . . . . Triggered . | . . . . . . Disarmed . | . . . . . . Reprogrammed . | . . . . . . Reused . | . . . . . . Traps Extracted . | . . . . . . Installed . | . . . . . . Triggered . | . . . . . . Machines | -11 -10 -9 -9 -7 -7 ---------- Run | Yrd Mat Mat Min Zio Dee Machines Disabled . | . . . . . . Max in Single Turn . | . . . . . . Machines Repaired . | . . . . . . Machines Dismantled . | . . . . . . Machines Sabotaged . | . . . . . . Overloaded Fab Kills . | . . . . . . Hacking | -11 -10 -9 -9 -7 -7 --------- Run | Yrd Mat Mat Min Zio Dee Machines Accessed 5 | . 2 3 . . . Terminals 5 | . 2 3 . . . Fabricators . | . . . . . . Repair Stations . | . . . . . . Recycling Units . | . . . . . . Scanalyzers . | . . . . . . Garrison Access . | . . . . . . Total Hacks 18 | . 7 11 . . . Successful 5 | . 2 3 . . . Failed 12 | . 4 8 . . . Catastrophic 2 | . 1 1 . . . Database Lockouts 1 | . 1 . . . . Manual 20 | . 4 4 . 12 . Terminals 18 | . 7 11 . . . Fabricators . | . . . . . . Repair Stations . | . . . . . . Recycling Units . | . . . . . . Scanalyzers . | . . . . . . Garrison Access . | . . . . . . Terminal Hacks 5 | . 2 3 . . . Robot Analysis 2 | . 2 . . . . Unreport Threat 1 | . . 1 . . . Recall Investigation 1 | . . 1 . . . Zone Layout 1 | . . 1 . . . Fabricator Hacks . | . . . . . . Repair Station Hacks . | . . . . . . Recycling Unit Hacks . | . . . . . . Scanalyzer . | . . . . . . Garrison Access Hacks . | . . . . . . Unauthorized Hacks . | . . . . . . Terminals . | . . . . . . Fabricators . | . . . . . . Repair Stations . | . . . . . . Recycling Units . | . . . . . . Scanalyzers . | . . . . . . Garrison Access . | . . . . . . Data Cores Recovered . | . . . . . . Used . | . . . . . . Hacking Detections 4 | . 2 2 . . . Full Trace Events . | . . . . . . Feedback Events . | . . . . . . Feedback Blocked . | . . . . . . Robot Schematics Acquired 3 | . . . . 3 . Robots Built . | . . . . . . Authchips . | . . . . . . Time . | . . . . . . Total Robot Build Rating . | . . . . . . Part Schematics Acquired 15 | . . . . 15 . Parts Built . | . . . . . . Authchips . | . . . . . . Time . | . . . . . . Total Part Build Rating . | . . . . . . Parts Repaired . | . . . . . . Time . | . . . . . . Parts Recycled . | . . . . . . Recycled Matter . | . . . . . . Retrieved Matter . | . . . . . . Retrieved Components . | . . . . . . Parts Scanalyzed . | . . . . . . Part Schematics Acquired . | . . . . . . Parts Damaged . | . . . . . . Bothacking | -11 -10 -9 -9 -7 -7 ------------ Run | Yrd Mat Mat Min Zio Dee Used RIF Installer . | . . . . . . Robots Hacked . | . . . . . . Non-combat . | . . . . . . Combat . | . . . . . . Robot Hacks Applied . | . . . . . . Relay Couplers Released . | . . . . . . Fabnet Peak Effective % . | . . . . . . Robots Rewired . | . . . . . . Allies Hacked . | . . . . . . Hacks Repelled . | . . . . . . Allies | -11 -10 -9 -9 -7 -7 -------- Run | Yrd Mat Mat Min Zio Dee Total Allies . | . . . . . . Largest Group . | . . . . . . Highest-Rated Group . | . . . . . . Highest-Rated Ally . | . . . . . . Total Orders . | . . . . . . Ally Attacks . | . . . . . . Total Damage . | . . . . . . Kills . | . . . . . . Allies Corrupted . | . . . . . . Allies Melted . | . . . . . . Intel | -11 -10 -9 -9 -7 -7 ------- Run | Yrd Mat Mat Min Zio Dee Active Infowar (turns) . | . . . . . . Robot Analysis Total 2 | . 2 . . . . Derelict Logs Recovered . | . . . . . . Drone Launches . | . . . . . . Drone Recoveries . | . . . . . . Exploration | -11 -10 -9 -9 -7 -7 ------------- Run | Yrd Mat Mat Min Zio Dee Turns Passed 1337 | 31 135 234 37 727 173 Spaces Moved 2128 | 38 201 301 27 1325 236 Core 145 | 35 104 . 2 . 4 Treads 3 | 3 . . . . . Legs 1 | . . . . . 1 Wheels . | . . . . . . Hover 1979 | . 97 301 25 1325 231 Flight . | . . . . . . Fastest Speed 50 | 50 50 52 56 52 52 Average Speed 54 | 58 52 54 61 53 54 Slowest Speed 300 | 160 60 56 120 56 300 Overloaded Moves . | . . . . . . Propulsion Burnouts . | . . . . . . Robots Hopped . | . . . . . . Potential Cave-ins . | . . . . . . Cave-ins Triggered . | . . . . . . Exploration Rate (%) 35 | 3 37 40 11 85 37 Regions Visited 5 Branch Regions 3 Pre-discovered Areas . | . . . . . . Known Exits Taken . | . . . . . . Unknown Exits Taken 5 | 1 1 1 1 1 . Scrap Searched 3 | . . . . 3 . Spaces Dug . | . . . . . . Terrain Destroyed 25 | . . . . . 25 Melee . | . . . . . . Projectile . | . . . . . . AOE 25 | . . . . . 25 Terrain Rammed . | . . . . . . Walls Destroyed . | . . . . . . Machines Disabled . | . . . . . . Actions | -11 -10 -9 -9 -7 -7 --------- Run | Yrd Mat Mat Min Zio Dee Total 2244 | 44 219 338 36 1340 267 Wait 1 | . . . . 1 . Move 2123 | 37 200 300 26 1324 236 Hop . | . . . . . . Pick Up 15 | 3 4 4 . 4 . Fast Attach 19 | 3 4 3 2 3 4 Attach 5 | 1 1 1 . . 2 Detach 5 | . 2 1 . 1 1 Swap 6 | . . 2 1 1 2 Drop 21 | . 2 6 2 6 5 Fire 41 | . 6 21 5 . 9 Melee . | . . . . . . Ram . | . . . . . . Kick . | . . . . . . Crush . | . . . . . . Escape Stasis . | . . . . . . Rewire 8 | . . . . . 8 Trap . | . . . . . . Miscellaneous . | . . . . . . Route ------- -11/Scrapyard -10/Materials -9/Materials -9/Mines -7/Zion (discovered 2 exits: [*Dee] / [*Pro]) -7/Deep Caves History --------- Turn | Location | Event 11 | -11/Scrapyard | Discovered new exit (range 15) 32 | -11/Scrapyard | Entered Materials 153 | -10/Materials | Discovered new exit (range 13) 163 | -10/Materials | Central database locked down 167 | -10/Materials | Entered another Materials area 167 | -9/Materials | Evolved 2 slots: Propulsion x1, Utility x1 316 | -9/Materials | Discovered new exit (range 8) 401 | -9/Materials | Entered Mines 435 | -9/Mines | A Derelict revealed a hidden shortcut to a safe place 438 | -9/Mines | Entered Zion 463 | -7/Zion | Given A8's code to call for help 469 | -7/Zion | System corruption cleaned by Quarantine Array 522 | -7/Zion | Discovered new exit (range 15) 718 | -7/Zion | Build established: Mutant 786 | -7/Zion | Learned Factory terminal intel 814 | -7/Zion | Acquired unknown access codes intercepted by a Zionite 940 | -7/Zion | Met Imprinter 969 | -7/Zion | Loaded intel: 4 derelict terminal locations 1152 | -7/Zion | Opened final containment barrier to the Deep Caves 1163 | -7/Zion | Discovered new exit (range 5) 1164 | -7/Zion | Saw the warning signs outside the Deep Caves entrance 1165 | -7/Zion | Entered Deep Caves 1242 | -7/Deep Caves | Found Surveybot 24 Chip 1305 | -7/Deep Caves | Attacked by Z-Imprinter 1318 | -7/Deep Caves | Found Prototype Protection 1318 | -7/Deep Caves | Identified Zio. Heavy Carapace 1334 | -7/Deep Caves | Core integrity fell below 50% 1338 | -7/Deep Caves | Core integrity fell below 20% 1338 | -7/Deep Caves | Destroyed by Z-Imprinter with Zionite Laser-M Last Messages --------------- Z-Imprinter: GET AWAY FROM HERE! I've worked too hard for our future just to have you ruin everything! 01305_ Dropped Imp. Hover Unit. 01306_ Dropped Adv. Weight Redist. System. 01313_ Dropped Nuclear Core. 01315_ Lgt. Armor Plating destroyed. 01318_ Acquired Prototype Protection. 01318_ Identified Zio. Heavy Carapace. 01323_ Acquired Prototype Leg. 01323_ Identified Zio. Composite Leg I. 01328_ Destroyed Adv. Phase Shifter. 01328_ Zio. Heavy Carapace destroyed. 01328_ Destroyed Zio. Heavy Carapace. 01328_ 4G-FST(z) destroyed. 01331_ Destroyed Prototype Protection. 01332_ Barrage Gun destroyed. 01332_ Prc. Grenade Launcher destroyed. 01335_ Acquired Prototype Protection. 01335_ Identified Zio. Light Carapace. Map ----- +----------------------------------------------------+ | | | | | | | | | | | | | | | | | | | | | | | | | | | | | | | | | | | | | | | | | | | | | | | | | ?????????????????????# # #???????????????????? | | ???????????????????### @ #?###############???? | | ???????????????????# ;### ##??? | | ???????????????????### I #??? | | ????????????????????# %= * #### | | ???????????????????# # z! == ## | | ?????????????????? | | ???????????????? zz | | ?????????????? | | ????????????? | | ????????????? | | ?????????????? """"" """""" | | ?????????????? """""""""""""" | | ?????????????? """""""""""""" | | ???????????????? """""""""""""" | | ????????????????? "???"""""?" | | ????????????????? "????????""""" | | ??????????????????? ???????????""" | | ????????????????????? ????????????"" | | ???????????????????????? ????????????"" | | ?????????????????????????? ?????????????" | | ??????????????????????????????????????? | | ??????????????????????????????????????? | | ??????????????????????????????????????? | | ???????????????????????????????????????? | | ???????????????????????????????????????? | +----------------------------------------------------+ Best States ------------- Heat Dissipation 28 Energy Generation 14 Energy Capacity 250 Matter Stores 300 Matter Capacity 300 Sight Range 16 Terrain Scan Density 2010 Additional Mass Support 9 Armor Coverage 1200 Evasion (%) 54 Recoil Reduction 2 Defensive Hacking 20 Item Schematics ----------------- Lightning Gun | -7/Zion | Archive Fusion Compressor | -7/Zion | Archive Plasma Rifle | -7/Zion | Archive Armor Integrity Analyzer | -7/Zion | Archive Imp. System Shield | -7/Zion | Archive Gravmag System | -7/Zion | Archive Imp. Shock Absorption System | -7/Zion | Archive Imp. Reaction Control System | -7/Zion | Archive Arm. Huge Wheel | -7/Zion | Archive Flak Gun | -7/Zion | Archive Imp. Proton Missile Launcher | -7/Zion | Archive Imp. Field Recycling Unit | -7/Zion | Archive Imp. Actuator Array | -7/Zion | Archive Coolant Injector | -7/Zion | Archive Lrn. Tractor Beam | -7/Zion | Archive Robot Schematics ------------------ R-06 Scavenger | -7/Zion | Archive M-28 Smith | -7/Zion | Archive C-17 Slicer | -7/Zion | Archive Fabricated ------------ Nothing Repaired ---------- Nothing Alien Tech Used ----------------- None Achievements -------------- None Challenges ------------ None Game ------ Seed ChromionDirtyLoader Manual? 0 Play Time 00:23:32 Cumulative 84.3 hours Start 2025.07.22 @ 19:05:20 End 2025.07.22 @ 19:31:04 Sessions 1 Manual Loads 0 Difficulty Rogue Special Mode None Game No. 72 Rogue 72 Adventurer 0 Explorer 0 Win Type - Total 3 Types 3/0/0/0/0/0/0/0/0/0 Lore% 23 Gallery% 44 Achievement% 40 Wizard Run 0 Options --------- Layout 2 ASCII 0 Keyboard 1 Movement Arrows Keybinds 0 Fullscreen 1 Font 32/SmallcapsGlow Map View 50x44 Zoom Use 0% Tactical HUD 1 Map Filters NONE Filters NONE Steam 1 RUN: 3391f035-c28a-44da-aaf0-aae567c35d24